Cogmind - Beta 12 @@@ ROGUE MODE // 2023.08.12 @ 18:05:31 Player: morimori Result: Destroyed by S-27 Virus with Autogun Performance ------------- Evolutions (3) 1500 Regions Visited (6) 1200 Robots Destroyed (45) 225 Value Destroyed (909) 909 Prototype IDs (6) 120 Alien Tech Used (0) 0 Bonus (-200) -200 TOTAL SCORE: 3754 Bonus ------- Friendly Fire -200 Cogmind --------- Core Integrity 0/700 Matter 0/300 Energy 100/100 System Corruption 25% Temperature Cool (0) Movement Flying (40) Location -7/Factory Parts ------- > --- POWER (1) -------- (None) > --- PROPULSION (3) --- Xenon Bombardment Thruster > --- UTILITY (6) ------ Visual Processing Unit Improved Signal Interpreter Launcher Guidance Computer Hacking Suite > --- WEAPON (3) ------- (None) > --- INVENTORY (5) ---- Light Deuterium Engine Armored Wheel Armored Wheel Improved Heat Sink High-capacity Storage Unit Peak State ------------ > --- POWER ------------ Light Deuterium Engine > --- PROPULSION ------- Wheel Armored Wheel Armored Wheel > --- UTILITY ---------- High-capacity Storage Unit Visual Processing Unit Improved Signal Interpreter Launcher Guidance Computer Weapon Cycler Hacking Suite > --- WEAPON ----------- Precision Beam Rifle Improved Grenade Launcher Improved Grenade Launcher > --- INVENTORY -------- Ion Engine Ion Engine Light Deuterium Engine Light Nuclear Core Wheel Compact Wheel Armored Wheel Armored Wheel Improved Heat Sink Structural Scanner Targeting Computer Improved Targeting Computer Launcher Guidance Computer ECM Suite Improved Shield Generator Field Laser EM Pulse Cannon Heavy Ion Cannon [Rating: 39] Favorites ----------- Power Ion Engine Engine Ion Engine Propulsion Wheel Leg Aluminum Leg Wheel Wheel Flight Unit Xenon Bombardment Thruster Utility High-capacity Storage Unit Device Sensor Array Storage High-capacity Storage Unit Processor Visual Processing Unit Hackware Hacking Suite Protection Medium Armor Plating Weapon Advanced Beam Cannon Energy Gun EM Pulse Gun Energy Cannon Advanced Beam Cannon Launcher Improved Grenade Launcher Build | -11 -10 -9 -8 -7 -7 -7 ------- Run | Jun Mat Mat Mat Fac Was Fac Slots Evolved 6 | . . 2 2 2 . . Power . | . . . . . . . Propulsion 1 | . . . . 1 . . Utility 4 | . . 2 2 . . . Weapon 1 | . . . . 1 . . Parts Attached 55 | 12 17 5 2 14 4 1 Power 6 | 2 2 . . 1 1 . Engine 6 | 2 2 . . 1 1 . Core . | . . . . . . . Reactor . | . . . . . . . Propulsion 16 | 4 7 1 . 3 . 1 Treads . | . . . . . . . Leg 2 | 2 . . . . . . Wheel 13 | 2 7 1 . 3 . . Hover . | . . . . . . . Flight 1 | . . . . . . 1 Utility 19 | 2 4 4 2 5 2 . Device 10 | 1 2 3 1 2 1 . Storage 2 | 1 1 . . . . . Processor 5 | . 1 1 . 2 1 . Hackware 1 | . . . . 1 . . Protection 1 | . . . 1 . . . Artifact . | . . . . . . . Weapon 14 | 4 4 . . 5 1 . Energy Gun 7 | 4 2 . . 1 . . Energy Cannon 4 | . 2 . . 2 . . Ballistic Gun . | . . . . . . . Ballistic Cannon . | . . . . . . . Launcher 3 | . . . . 2 1 . Special Weapon . | . . . . . . . Impact Weapon . | . . . . . . . Slashing Weapon . | . . . . . . . Piercing Weapon . | . . . . . . . Special Melee Weapon . | . . . . . . . Unidentified Prototypes 2 | . 1 . . 1 . . Parts Lost 12 | . 5 . . 1 4 2 Power 3 | . 2 . . . 1 . Propulsion 5 | . 1 . . 1 1 2 Utility 1 | . . . . . 1 . Weapon 3 | . 2 . . . 1 . Highest Loss Streak 3 | . 3 . . 1 2 2 To Critical Strikes . | . . . . . . . Average Slot Usage (%) 96 | . 99 100 100 99 89 41 Engine 10 | . 13 11 9 7 6 1 Wheel 23 | . 27 22 18 22 19 5 Device 12 | . 13 11 18 15 10 1 Storage 10 | . 14 11 9 7 7 1 Processor 12 | . . 22 18 19 19 23 Hackware 1 | . . . . 1 7 7 Protection 1 | . . . 9 1 . . Energy Gun 11 | . 24 . . 3 4 . Energy Cannon 8 | . 2 22 18 10 1 . Launcher 2 | . . . . 6 9 . Naked Turns . | . . . . . . . Heaviest Build 71 | 14 54 54 63 71 65 46 Greatest Support 34 | 20 26 20 20 34 34 24 Greatest Overweight (x) 4 | 3 4 2 3 2 2 1 Average Overweight (x) 1 | . 1 2 3 1 1 . Largest Inventory Capacity 20 | 8 20 20 20 20 20 20 Average Capacity 18 | 7 19 20 20 20 20 8 Most Carried 20 | 8 20 20 20 20 20 20 Average Carried 17 | 6 18 19 19 19 18 8 Final Capacity 20 | 8 20 20 20 20 20 5 Final Carried 20 | 8 20 20 20 20 20 5 Class Distribution -------------------- 52% | Mutant 42% | Scavenger-Skirmisher 4% | Scavenger-Mutant Dominant Class ---------------- Mutant | -10/Materials Scavenger-Skirmisher | -9/Materials Scavenger-Skirmisher | -8/Materials Scavenger-Skirmisher | -7/Factory Mutant | -7/Waste Mutant | -7/Factory Resources | -11 -10 -9 -8 -7 -7 -7 ----------- Run | Jun Mat Mat Mat Fac Was Fac Matter Collected 1193 | 320 395 50 20 68 340 . Remotely . | . . . . . . . Salvage Created 1820 | 224 583 286 148 177 402 . Parts 79 | 18 23 11 6 20 1 . Haulers Intercepted . | . . . . . . . Recyclers Shooed 1 | 1 . . . . . . Parts Field Recycled . | . . . . . . . Retrieved Matter . | . . . . . . . Parts Self-Destructed . | . . . . . . . Prevented . | . . . . . . . Kills | -11 -10 -9 -8 -7 -7 -7 ------- Run | Jun Mat Mat Mat Fac Was Fac Combat Hostiles Destroyed 20 | . 7 6 1 4 2 . Guns 6 | . 6 . . . . . Cannons 7 | . . 6 1 . . . AOE 7 | . 1 . . 4 2 . Classes Destroyed 10 | 3 3 1 1 1 1 . Worker 4 | 2 1 . . 1 . . Builder 3 | . 1 . . 2 . . Tunneler 7 | 6 1 . . . . . Recycler 5 | 1 2 . 1 1 . . Watcher 5 | . 2 1 . 2 . . Swarmer 4 | . . . . 4 . . Grunt 12 | . 7 5 . . . . Brawler 1 | . . 1 . . . . Sentry 1 | . . . 1 . . . Compactor 2 | . . . . . 2 . Thug 1 | . . . . . 1 . Best Kill Streak 9 | 2 3 2 2 9 1 . Combat Bots Only 4 | . 2 2 1 4 1 . Max Kills in Single Turn 6 | 1 2 1 1 6 1 . Gunslinging . | . . . . . . . Exploded 3 | . 1 . . 3 1 . Melee . | . . . . . . . Uniques/NPCs Destroyed . | . . . . . . . Combat | -11 -10 -9 -8 -7 -7 -7 -------- Run | Jun Mat Mat Mat Fac Was Fac Damage Taken 2055 | 46 461 115 19 322 286 806 Core 847 | 10 100 12 9 36 30 650 Absorbed by Shields 63 | . . . 7 56 . . Regen/Repaired (Parts) 11 | . 11 . . . . . Core Remaining (%) 86 | 96 56 97 98 . . . Volleys Fired 97 | 17 41 12 3 4 20 . Largest 3 | 2 2 2 2 3 3 . Hottest 201 | 90 136 136 136 201 162 . Shots Fired 198 | 34 82 24 6 11 41 . Gun 116 | 34 80 . . 1 1 . Cannon 41 | . 2 24 6 8 1 . Launcher 41 | . . . . 2 39 . Special . | . . . . . . . Kinetic . | . . . . . . . Thermal 104 | 9 54 24 6 9 2 . Explosive 41 | . . . . 2 39 . Electromagnetic 53 | 25 28 . . . . . Robot Hit Streak 17 | 8 9 8 2 3 17 . Robot Miss Streak 4 | 3 4 2 1 4 1 . Penetration Max . | . . . . . . . Secondary Targets . | . . . . . . . Shots Hit Robots 141 | 21 61 14 3 5 37 . Core Hits 61 | 10 24 7 2 10 8 . Critical Kills . | . . . . . . . Critical Parts Destroyed . | . . . . . . . Critical Strikes 4 | 2 2 . . . . . Burn 3 | 1 2 . . . . . Corrupt 1 | 1 . . . . . . Melee Attacks . | . . . . . . . Impact . | . . . . . . . Slashing . | . . . . . . . Piercing . | . . . . . . . Sneak Attacks . | . . . . . . . Combat Hostiles . | . . . . . . . Follow-up Attacks . | . . . . . . . Damage Inflicted 6014 | 333 973 288 63 710 3647 . Guns 1037 | 249 788 . . . . . Cannons 515 | . 21 288 63 116 27 . Explosions 4462 | 84 164 . . 594 3620 . Melee . | . . . . . . . Ramming . | . . . . . . . Kinetic . | . . . . . . . Thermal 1324 | 145 685 288 63 116 27 . Explosive 4214 | . . . . 594 3620 . Electromagnetic 476 | 188 288 . . . . . Impact . | . . . . . . . Slashing . | . . . . . . . Piercing . | . . . . . . . Highest Corruption 25 | . . . . . 25 25 Average Corruption 18 | . . . . . 15 25 Corruption Purged . | . . . . . . . Corruption Blocked . | . . . . . . . Effects 21 | . . . . . 14 7 Message Errors 5 | . . . . . 4 1 Matter Fused 2 | . . . . . 2 . Heat Flow Errors 3 | . . . . . 2 1 Energy Discharges 1 | . . . . . . 1 Data Loss (minor) 3 | . . . . . 2 1 Data Loss (major) 1 | . . . . . 1 . Alerts 1 | . . . . . 1 . Misdirections 5 | . . . . . 2 3 Overload Shots . | . . . . . . . Overflow Damage 144 | 6 26 . . 93 19 . Projectiles . | . . . . . . . Explosions 144 | 6 26 . . 93 19 . Melee . | . . . . . . . Knockbacks . | . . . . . . . Impact . | . . . . . . . Kinetic . | . . . . . . . Secondary . | . . . . . . . Self-Inflicted Damage 456 | 46 109 . . 56 245 . Shots 15 | 2 3 . . 1 9 . Rammed . | . . . . . . . Targets Rammed . | . . . . . . . Kicked . | . . . . . . . Crushed . | . . . . . . . Highest Temperature 325 | 120 273 325 138 123 254 102 Average Temperature 80 | 33 94 111 64 51 69 68 Received Heat Transfer 291 | . 237 48 6 . . . Effects 1 | . 1 . . . . . Interference 1 | . 1 . . . . . Siege Activations . | . . . . . . . Robots Corrupted . | . . . . . . . Combat Hostiles . | . . . . . . . Parts Fried 3 | . 3 . . . . . Impact Corruptions . | . . . . . . . Robots Melted . | . . . . . . . Combat Hostiles . | . . . . . . . Parts Melted 9 | 1 6 1 . 1 . . Heat Transferred 2933 | 359 1723 518 111 185 37 . Parts Sabotaged . | . . . . . . . Parts Stolen . | . . . . . . . Parts Stripped . | . . . . . . . Power Chain Reactions 4 | 2 2 . . . . . Missiles Intercepted . | . . . . . . . Alert | -11 -10 -9 -8 -7 -7 -7 ------- Run | Jun Mat Mat Mat Fac Was Fac Peak Influence 244 | 45 178 244 160 209 64 62 Initial 102 | . 29 9 102 72 5 37 Average 70 | 19 46 88 127 133 39 47 Maximum Alert Level 1 | . . 1 . 1 . . Low Security (%) 94 | 100 100 87 100 81 100 100 Level 1 5 | . . 12 . 18 . . Level 2 . | . . . . . . . Level 3 . | . . . . . . . Level 4 . | . . . . . . . Level 5 . | . . . . . . . High Security . | . . . . . . . Max Security . | . . . . . . . Squads Dispatched 2 | . 1 . . 1 . . Investigation . | . . . . . . . Extermination 1 | . . . . 1 . . Reinforcement 1 | . 1 . . . . . Assault . | . . . . . . . Garrison . | . . . . . . . Intercept . | . . . . . . . Searches Triggered . | . . . . . . . Construction Impeded . | . . . . . . . Haulers Reinforced . | . . . . . . . Active Scanning Responses . | . . . . . . . Cargo Convoy Interrupts . | . . . . . . . Stealth | -11 -10 -9 -8 -7 -7 -7 --------- Run | Jun Mat Mat Mat Fac Was Fac Distress Signals 2 | . . 1 . 1 . . Communications Jammed . | . . . . . . . Distress Signals . | . . . . . . . Times Spotted 43 | . 12 11 1 6 6 7 Peak Tracking Total 4 | . 4 4 1 4 4 4 Tactical Retreats 6 | . 1 3 . . 1 1 Traps | -11 -10 -9 -8 -7 -7 -7 ------- Run | Jun Mat Mat Mat Fac Was Fac Traps Triggered 1 | . . . . 1 . . Indirectly . | . . . . . . . Trap Hack Attempts . | . . . . . . . Triggered . | . . . . . . . Disarmed . | . . . . . . . Reprogrammed . | . . . . . . . Reused . | . . . . . . . Traps Extracted . | . . . . . . . Installed . | . . . . . . . Triggered . | . . . . . . . Machines | -11 -10 -9 -8 -7 -7 -7 ---------- Run | Jun Mat Mat Mat Fac Was Fac Machines Disabled 1 | . 1 . . . . . Max in Single Turn 1 | . 1 . . . . . Machines Repaired . | . . . . . . . Machines Sabotaged . | . . . . . . . Overloaded Fab Kills . | . . . . . . . Hacking | -11 -10 -9 -8 -7 -7 -7 --------- Run | Jun Mat Mat Mat Fac Was Fac Machines Accessed 18 | . 6 4 2 5 . 1 Terminals 12 | . 4 3 1 3 . 1 Fabricators . | . . . . . . . Repair Stations 1 | . 1 . . . . . Recycling Units 2 | . 1 . . 1 . . Scanalyzers 2 | . . 1 1 . . . Garrison Access 1 | . . . . 1 . . Total Hacks 38 | . 11 13 3 10 . 1 Successful 21 | . 7 6 3 5 . . Failed 17 | . 4 7 . 5 . 1 Catastrophic 3 | . 2 1 . . . . Database Lockouts . | . . . . . . . Manual . | . . . . . . . Terminals 27 | . 7 10 1 8 . 1 Fabricators . | . . . . . . . Repair Stations 2 | . 2 . . . . . Recycling Units 3 | . 2 . . 1 . . Scanalyzers 5 | . . 3 2 . . . Garrison Access 1 | . . . . 1 . . Terminal Hacks 12 | . 3 4 1 4 . . Record 1 | . . . . 1 . . Prototype ID Bank 2 | . . 1 . 1 . . Open DSF 1 | . . . . 1 . . Scanalyzer Index 1 | . . 1 . . . . Locate Traps 2 | . 1 . . 1 . . Security Status 2 | . 1 1 . . . . Surveillance Status 1 | . . . 1 . . . Investigation Status 1 | . . 1 . . . . Registered Components 1 | . 1 . . . . . Fabricator Hacks . | . . . . . . . Repair Station Hacks 2 | . 2 . . . . . Scan Component 1 | . 1 . . . . . Repair 1 | . 1 . . . . . Recycling Unit Hacks 3 | . 2 . . 1 . . Report Inventory 1 | . 1 . . . . . Retrieve Matter 1 | . . . . 1 . . Retrieve Components 1 | . 1 . . . . . Scanalyzer 4 | . . 2 2 . . . Insert Component 2 | . . 1 1 . . . Analyze 2 | . . 1 1 . . . Garrison Access Hacks . | . . . . . . . Unauthorized Hacks . | . . . . . . . Terminals . | . . . . . . . Fabricators . | . . . . . . . Repair Stations . | . . . . . . . Recycling Units . | . . . . . . . Scanalyzers . | . . . . . . . Garrison Access . | . . . . . . . Data Cores Recovered . | . . . . . . . Used . | . . . . . . . Hacking Detections 14 | . 4 4 1 4 . 1 Full Trace Events . | . . . . . . . Feedback Events . | . . . . . . . Feedback Blocked . | . . . . . . . Robot Schematics Acquired . | . . . . . . . Robots Built . | . . . . . . . Authchips . | . . . . . . . Time . | . . . . . . . Total Robot Build Rating . | . . . . . . . Part Schematics Acquired 2 | . . 1 1 . . . Parts Built . | . . . . . . . Authchips . | . . . . . . . Time . | . . . . . . . Total Part Build Rating . | . . . . . . . Parts Repaired 1 | . 1 . . . . . Time 26 | . 26 . . . . . Parts Recycled . | . . . . . . . Recycled Matter . | . . . . . . . Retrieved Matter . | . . . . . . . Retrieved Components 1 | . 1 . . . . . Parts Scanalyzed 2 | . . 1 1 . . . Part Schematics Acquired 2 | . . 1 1 . . . Parts Damaged . | . . . . . . . Bothacking | -11 -10 -9 -8 -7 -7 -7 ------------ Run | Jun Mat Mat Mat Fac Was Fac Used RIF Installer . | . . . . . . . Robots Hacked . | . . . . . . . Non-combat . | . . . . . . . Combat . | . . . . . . . Robot Hacks Applied . | . . . . . . . Relay Couplers Released . | . . . . . . . Fabnet Peak Effective % . | . . . . . . . Robots Rewired . | . . . . . . . Allies Hacked . | . . . . . . . Hacks Repelled . | . . . . . . . Allies | -11 -10 -9 -8 -7 -7 -7 -------- Run | Jun Mat Mat Mat Fac Was Fac Total Allies 1 | . . . . . 1 . Largest Group 1 | . . . . . 1 . Highest-Rated Group 31 | . . . . . 31 . Highest-Rated Ally 31 | . . . . . 31 . Total Orders . | . . . . . . . Ally Attacks 7 | . . . . . 7 . Total Damage 127 | . . . . . 127 . Kills . | . . . . . . . Allies Corrupted . | . . . . . . . Allies Melted . | . . . . . . . Intel | -11 -10 -9 -8 -7 -7 -7 ------- Run | Jun Mat Mat Mat Fac Was Fac Robot Analysis Total . | . . . . . . . Derelict Logs Recovered . | . . . . . . . Drone Launches . | . . . . . . . Drone Recoveries . | . . . . . . . Exploration | -11 -10 -9 -8 -7 -7 -7 ------------- Run | Jun Mat Mat Mat Fac Was Fac Turns Passed 2875 | 293 1060 362 206 550 299 105 Spaces Moved 1751 | 187 383 201 149 457 226 148 Core 107 | 5 . . . . . 102 Treads . | . . . . . . . Legs 116 | 116 . . . . . . Wheels 1500 | 66 383 201 149 457 226 18 Hover . | . . . . . . . Flight 28 | . . . . . . 28 Fastest Speed 40 | 50 80 110 125 101 101 40 Average Speed 102 | 105 107 110 125 101 104 54 Slowest Speed 200 | 200 140 110 125 116 120 105 Overloaded Moves . | . . . . . . . Propulsion Burnouts . | . . . . . . . Robots Hopped . | . . . . . . . Cave-ins Triggered . | . . . . . . . Exploration Rate (%) 29 | 8 57 20 23 15 76 5 Regions Visited 6 Branch Regions . Pre-discovered Areas . | . . . . . . . Known Exits Taken 3 | . 1 1 1 . . . Unknown Exits Taken 1 | 1 . . . . . . Scrap Searched . | . . . . . . . Spaces Dug . | . . . . . . . Terrain Destroyed 169 | 5 8 . . 14 142 . Melee . | . . . . . . . Projectile . | . . . . . . . AOE 169 | 5 8 . . 14 142 . Terrain Rammed . | . . . . . . . Walls Destroyed . | . . . . . . . Machines Disabled . | . . . . . . . Actions | -11 -10 -9 -8 -7 -7 -7 --------- Run | Jun Mat Mat Mat Fac Was Fac Total 2652 | 248 952 319 164 537 252 180 Wait 611 | 9 468 88 3 30 1 12 Move 1746 | 186 382 200 148 457 225 148 Hop . | . . . . . . . Pick Up 81 | 19 30 8 5 17 2 . Fast Attach 3 | 1 . . . 1 . 1 Attach 28 | 8 8 2 2 6 2 . Detach 1 | . . . . . . 1 Swap 24 | 3 9 3 . 7 2 . Drop 61 | 5 14 6 3 15 . 18 Fire 97 | 17 41 12 3 4 20 . Melee . | . . . . . . . Ram . | . . . . . . . Kick . | . . . . . . . Crush . | . . . . . . . Escape Stasis . | . . . . . . . Rewire . | . . . . . . . Trap . | . . . . . . . Miscellaneous . | . . . . . . . Route ------- -11/Junkyard -10/Materials (discovered 2 exits: *Mat x2) -9/Materials -8/Materials -7/Factory -7/Waste -7/Factory History --------- Turn | Location | Event 34 | -11/Junkyard | Discovered new exit (range 15) 294 | -11/Junkyard | Entered Materials 331 | -10/Materials | Build established: Mutant 451 | -10/Materials | Discovered new exit (range 12) 590 | -10/Materials | Lost 3 parts (1p2w) 1216 | -10/Materials | Discovered new exit (range 7) 1328 | -10/Materials | Repaired Seismic Detector 1353 | -10/Materials | Identified exit to Materials 1354 | -10/Materials | Entered another Materials area 1354 | -9/Materials | Evolved 2 slots: Utility x2 1662 | -9/Materials | Build established: Scavenger-Skirmisher 1690 | -9/Materials | Discovered new exit (range 18) 1715 | -9/Materials | Identified exit to Materials 1716 | -9/Materials | Entered another Materials area 1716 | -8/Materials | Evolved 2 slots: Utility x2 1864 | -8/Materials | Discovered new exit (range 18) 1921 | -8/Materials | Identified exit to Factory 1922 | -8/Materials | Entered Factory 1922 | -7/Factory | Evolved 2 slots: Propulsion x1, Weapon x1 2472 | -7/Factory | Sucked down chute 2472 | -7/Factory | Entered Waste 2473 | -7/Waste | Met a frightened Derelict 2487 | -7/Waste | EMP discharged 2505 | -7/Waste | Spotted C-40 Crusher 2544 | -7/Waste | Destroyed C-40 Crusher 2547 | -7/Waste | Spotted C-40 Crusher 2584 | -7/Waste | Spotted C-40 Crusher 2587 | -7/Waste | EMP discharged 2587 | -7/Waste | System corruption reached 10% 2597 | -7/Waste | Destroyed C-40 Crusher 2637 | -7/Waste | Spotted C-40 Crusher 2647 | -7/Waste | Spotted C-40 Crusher 2687 | -7/Waste | EMP discharged 2687 | -7/Waste | Crushed by Compactor (1 part destroyed, 2 dropped) 2709 | -7/Waste | Spotted C-40 Crusher 2751 | -7/Waste | Discovered new exit (range 10) 2761 | -7/Waste | Identified exit to Factory 2771 | -7/Waste | Entered Factory 2845 | -7/Factory | Core integrity fell below 50% 2858 | -7/Factory | Core integrity fell below 20% 2876 | -7/Factory | Destroyed by S-27 Virus with Autogun Last Messages --------------- 02793_ Dropped Com. Wheel. 02794_ Dropped Wheel. 02794_ Dropped Structural Scanner. 02795_ Dropped Imp. Targeting Computer. 02795_ Dropped Targeting Computer. 02796_ Dropped Broken Recoil Nullifier. 02796_ Dropped ECM Suite. 02797_ Dropped Corrupted Authchip [Weapon]. 02797_ Dropped Imp. Shield Generator. 02798_ Dropped Launcher Guidance Computer. 02799_ Dropped Weapon Cycler. 02799_ Dropped Lgt. Deuterium Engine. 02801_ ALERT: All DSF locations entering lockdown mode. 02809_ Arm. Wheel destroyed. 02810_ OIR11GDQ9U%C>3HB00 UHD=O |R1WD